bitfinex/quotes_ETHUSD_20250213
["timestamp","ask_amount","ask_price","bid_price","bid_amount"]
[1739463066000,3.87228,2643.2,2642.6,3.78406]
[1739463066196,0.0889,2643.2,2642.4,3.458878]
[1739463066436,0.005,2643.4,2643.1,3.78343]
[1739463066601,0.005,2643.4,2643.0,3.0]
[1739463066942,0.005,2643.4,2642.7,3.78396]
[1739463067238,3.78377,2642.9,2642.5,0.8188]
[1739463067397,3.78398,2642.8,2642.2,0.8188]
[1739463067772,3.78398,2642.8,2642.3,3.78455]
[1739463068032,3.78411,2642.7,2642.1,3.78476]
[1739463068193,3.78398,2642.8,2642.1,3.78476]
[1739463068391,0.0075,2642.8,2642.3,3.78444]
[1739463068816,3.79139,2642.8,2642.3,3.78444]
[1739463069018,7.57539,2642.8,2642.2,3.0]
[1739463069216,3.79139,2642.8,2642.2,3.0]
[1739463069529,0.08517302,2642.7,2642.2,6.78469]
[1739463069935,0.08517302,2642.7,2642.6,3.78415]
[1739463070092,0.0889,2643.2,2642.8,3.78373]
[1739463070292,0.08233023,2643.1,2642.9,3.78364]
[1739463070515,0.314,2643.4,2642.9,3.78364]
[1739463070748,0.08233023,2643.3,2642.5,4.53783]
[1739463070943,3.78343,2643.1,2642.5,7.56841]
[1739463071234,0.08257027,2643.0,2642.7,3.78398]
[1739463071404,0.08257027,2643.0,2642.4,0.7644113]
[1739463071607,0.0889,2642.9,2642.2,4.54027]
[1739463071810,0.17147027,2642.9,2642.3,3.78457]
[1739463072014,0.08257027,2642.9,2642.4,3.78443]
[1739463072194,3.78405,2642.7,2642.2,1.209627]
[1739463072394,3.78438,2642.5,2641.9,3.78511]
[1739463072634,3.78446,2642.4,2641.8,4.5639]
[1739463072836,0.17141837,2642.6,2641.8,1.66491002]
[1739463072837,3.87308,2642.6,2641.8,1.66491002]
[1739463073039,0.08238214,2642.3,2642.1,3.78479]
[1739463073242,0.0889,2642.6,2642.1,3.78479]
[1739463073417,0.08238214,2642.2,2642.1,3.78479]
[1739463073620,3.87282,2642.8,2642.3,3.7845]
[1739463073833,4.639969,2642.8,2642.3,3.7845]
[1739463074033,0.08238214,2642.7,2642.3,3.78448]
[1739463074347,4.639969,2642.8,2642.3,3.78448]
[1739463074348,4.639969,2642.8,2642.3,7.56894]
[1739463074647,0.08238214,2642.7,2642.4,3.7844]
[1739463075022,0.856049,2642.8,2642.4,3.7844]
[1739463075223,0.08238214,2642.6,2642.1,3.78475]
[1739463075438,3.78436,2642.5,2642.0,3.0]
[1739463075642,3.78436,2642.5,2642.0,6.78499]
[1739463075844,0.08238214,2642.4,2642.0,6.78499]
[1739463076228,0.0889,2642.8,2642.2,3.78472]
[1739463076432,0.08238214,2642.3,2642.2,3.78467]
[1739463076657,3.78355,2643.1,2642.4,3.78432]
[1739463076840,3.78389,2642.8,2642.3,3.0]
[1739463077040,0.08238214,2643.0,2642.0,4.223495]
[1739463077238,0.0889,2643.2,2642.8,3.78381]
[1739463077552,5.32,2643.3,2642.2,0.7513]
[1739463077553,7.597,2643.3,2642.9,3.78372]
[1739463077759,0.08238214,2643.2,2643.0,3.78346]
[1739463077967,2.277,2643.3,2643.0,3.78345]
[1739463078122,0.08238214,2643.2,2642.8,3.78383]
[1739463078324,0.314,2643.4,2642.8,3.78383]
[1739463078325,0.314,2643.4,2642.9,3.78359]
[1739463078526,0.08238214,2643.3,2642.5,3.0]
[1739463078725,3.86557214,2643.3,2642.7,3.0]
[1739463079181,3.86557214,2643.3,2642.8,3.78379]
[1739463079324,0.08238214,2643.3,2642.5,3.0]
[1739463079527,0.08238214,2643.3,2642.6,0.53856092]
[1739463079844,0.08238214,2643.3,2643.0,3.78357]
[1739463080370,0.08238214,2643.3,2643.1,3.78341]
[1739463080526,0.08238214,2643.3,2643.2,3.81151441]
[1739463080725,0.08238214,2643.3,2643.2,4.57099348]
[1739463080981,0.005,2643.4,2643.3,3.78314]
[1739463081127,0.005,2643.4,2643.2,3.78329]
[1739463081470,0.14416,2644.6,2644.2,3.78185]
[1739463081642,0.14416,2644.6,2644.2,3.78176]
[1739463082055,0.14416,2644.6,2644.1,0.7513]
[1739463082297,0.14416,2644.6,2644.1,2.00931903]
[1739463082436,0.14416,2644.6,2644.3,3.78171]
[1739463082886,0.14416,2644.6,2644.2,6.78186]
[1739463083100,0.14416,2644.6,2643.9,3.78221]
[1739463083235,0.0889,2644.5,2643.9,3.78221]
[1739463083434,4.271857,2644.5,2644.0,3.0]
[1739463083839,4.271787,2644.5,2644.0,3.0]
[1739463084303,0.490347,2644.5,2644.1,3.7819]
[1739463084439,0.08127081,2644.4,2644.1,3.0]
[1739463084773,0.08127081,2644.4,2644.1,6.78189]
[1739463084976,0.08127081,2644.4,2644.2,3.78183]
[1739463085177,0.08127081,2644.4,2644.2,3.78176]
[1739463085760,0.08127081,2644.4,2644.1,6.78197]
[1739463086235,0.08127081,2644.4,2644.1,3.0]
[1739463086843,0.08127081,2644.4,2644.3,3.78171]
[1739463087334,0.14416,2644.6,2644.4,3.78145]
[1739463087538,0.14416,2644.6,2644.5,3.78143]
[1739463087964,0.14416,2644.6,2644.5,6.80959616]
[1739463088533,0.14416,2644.6,2644.5,3.0]
[1739463089041,0.14416,2644.6,2644.5,6.78143]
[1739463089243,0.14416,2644.6,2644.5,6.80959555]
[1739463089882,0.14416,2644.6,2644.5,6.78143]
[1739463091383,0.14416,2644.6,2644.5,6.80959154]
[1739463091596,0.14416,2644.6,2644.5,6.78143]
[1739463091802,0.14416,2644.6,2644.5,3.0]
[1739463092862,0.19142833,2644.6,2643.8,0.7838]
[1739463093061,3.7818,2644.3,2643.7,3.78247]
[1739463093368,3.7818,2644.3,2643.8,6.78241]
[1739463093783,3.78245,2643.8,2643.4,6.8301]
[1739463093985,3.87107,2644.0,2643.4,9.77991]
[1739463094186,3.78244,2643.8,2643.4,5.997]
[1739463094399,0.476007,2644.0,2643.0,3.7835]
[1739463094400,3.7828,2643.6,2643.0,3.7835]
[1739463094565,3.78288,2643.5,2643.0,3.78354]
[1739463094755,3.7828,2643.6,2643.1,6.78338]
[1739463094962,3.78245,2643.8,2643.1,3.78335]
[1739463095163,0.8040687,2643.8,2643.3,3.78304]
[1739463095374,0.0889,2644.3,2643.8,3.78238]
[1739463095731,0.54106,2644.6,2644.2,3.78177]
[1739463096058,0.54106,2644.6,2644.1,3.78196]
[1739463096259,0.08150452,2644.5,2644.1,3.78196]
[1739463096600,0.54106,2644.6,2644.5,3.78143]
[1739463096767,0.14416,2644.6,2644.5,3.78143]
[1739463097464,0.22566452,2644.6,2644.5,3.78143]
[1739463097915,0.14416,2644.6,2644.5,3.78143]
[1739463098317,0.22566452,2644.6,2644.5,3.78143]
[1739463098710,0.14416,2644.6,2644.2,3.78184]
[1739463098912,0.14416,2644.6,2644.2,7.56356]
[1739463099218,0.08150452,2644.5,2644.4,3.78157]
[1739463100156,0.14416,2644.6,2644.5,3.78143]
[1739463100461,0.14416,2644.6,2644.5,8.2440702]
[1739463100660,0.14416,2644.6,2644.5,8.215901]
[1739463101165,0.323,2645.4,2645.2,3.78035]
[1739463101166,0.3969,2645.4,2645.2,3.78035]
[1739463101315,0.0669,2645.4,2645.3,3.78028]
[1739463101520,0.308,2645.7,2645.6,3.77986]
[1739463101723,3.779,2646.3,2645.1,3.0]
[1739463101937,0.308,2646.2,2645.2,0.02813937]
[1739463102161,0.015,2646.1,2645.8,3.77956]
[1739463102466,0.015,2646.1,2645.3,3.0]
[1739463102626,0.015,2646.1,2645.5,3.77988]
[1739463103051,3.77936,2646.0,2645.5,3.77988]
[1739463103254,0.410202,2646.1,2645.5,3.77988]
[1739463103467,0.308,2646.2,2645.5,3.77988]
[1739463103636,0.308,2646.2,2645.3,3.78022]
[1739463103637,3.77932,2646.0,2645.3,3.78016]
[1739463103842,3.77958,2645.8,2645.3,3.78016]
[1739463104043,4.54019487,2645.8,2645.3,3.78016]
[1739463104354,4.54019487,2645.8,2645.4,3.78005]
[1739463104355,0.76061487,2645.8,2645.4,3.78005]
[1739463104665,0.0669,2645.8,2645.4,3.78005]
[1739463104866,0.0669,2645.8,2645.7,3.77971]
[1739463105396,0.0669,2645.8,2645.3,3.78018]
[1739463105564,0.0669,2645.8,2645.4,3.78006]
[1739463105731,0.0669,2645.8,2645.4,3.0]
[1739463105922,0.829476,2645.8,2645.4,6.78006]
[1739463106327,0.0669,2645.8,2645.5,3.77998]
[1739463107268,0.0669,2645.8,2645.7,3.77971]
[1739463107466,0.0819,2646.1,2645.9,3.77932]
[1739463107664,0.0819,2646.1,2645.9,7.55867]
[1739463107833,0.0819,2646.1,2645.9,3.77931]
[1739463108032,0.0669,2646.1,2645.9,3.77936]
[1739463108234,0.0669,2646.1,2645.4,3.0]
[1739463108456,3.84614,2646.1,2645.4,3.78007]
[1739463108676,0.0669,2646.1,2645.6,3.77986]
[1739463108833,0.0669,2646.4,2645.5,3.77999]
[1739463109203,0.0669,2646.4,2646.3,3.77886]
[1739463109545,0.14808618,2646.4,2646.1,3.77902]
[1739463109959,3.92687618,2646.4,2645.9,3.0]
[1739463110171,0.39268762,2646.3,2645.9,3.0]
[1739463110419,0.08129005,2646.2,2645.9,3.0]
[1739463110702,0.0075,2646.1,2645.4,0.7556]
[1739463110908,0.0075,2646.1,2644.8,5.03491029]
[1739463110909,3.84669,2645.7,2645.2,3.78035]
[1739463111116,3.78013,2645.5,2645.0,7.56125]
[1739463111407,3.78013,2645.5,2644.8,0.8288]
[1739463111408,7.56079,2645.3,2644.8,3.78099]
[1739463111545,3.86134826,2645.4,2644.9,3.78082]
[1739463111745,3.78034,2645.3,2644.8,3.0]
[1739463111984,3.78034,2645.3,2644.8,3.7809]
[1739463112182,0.08110826,2645.2,2644.9,3.78073]
[1739463112505,0.384669,2645.6,2645.2,3.78033]
[1739463112703,0.692669,2645.6,2645.2,3.78033]
[1739463112883,3.78011,2645.5,2644.9,3.0]
[1739463113064,0.45200335,2645.4,2644.9,3.0]
[1739463113264,0.45200335,2645.4,2645.0,3.78069]
[1739463113449,0.45200335,2645.4,2645.0,3.78064]
[1739463113653,0.015,2645.5,2645.0,3.78064]
[1739463113841,0.308,2645.6,2645.1,3.78056]
[1739463114159,0.308,2645.6,2645.2,3.78033]
[1739463114490,0.08064061,2645.5,2645.2,3.78033]
[1739463114783,4.15469,2645.7,2645.1,3.78047]
[1739463114984,3.78011,2645.5,2645.0,3.78063]
[1739463115155,3.78,2645.5,2645.0,3.78063]
[1739463115348,3.86081061,2645.4,2644.9,6.78085]
[1739463115544,3.86081061,2645.4,2644.9,6.78074]
[1739463116062,3.7803,2645.3,2644.9,3.0]
[1739463116262,3.86081061,2645.4,2644.9,6.78076]
[1739463116454,3.86081061,2645.4,2644.9,3.0]
[1739463116455,8.36603696,2645.4,2644.9,3.0]
[1739463116655,3.78044,2645.2,2644.9,3.0]
[1739463116886,3.82793849,2645.1,2644.5,4.56822]
[1739463117088,0.11415849,2645.1,2644.5,3.78142]
[1739463117311,3.86136061,2645.0,2644.6,3.0]
[1739463117615,0.08064061,2645.0,2644.6,6.78122]
[1739463117815,0.08064061,2645.0,2644.8,3.78096]
[1739463118107,0.08064061,2645.0,2644.9,3.78086]
[1739463118268,3.84713,2645.4,2644.8,3.78096]
[1739463118473,0.08064061,2645.0,2644.8,3.7809]
[1739463118691,0.3749,2645.7,2645.4,3.78006]
[1739463118909,4.15461,2645.7,2645.2,3.78037]
[1739463119219,0.3749,2645.7,2645.3,3.78027]
[1739463119414,0.3749,2645.7,2645.2,3.78037]
[1739463119616,0.0669,2645.7,2645.2,3.78037]
[1739463119769,0.308,2645.9,2645.4,3.78002]
[1739463120117,3.77957,2645.8,2645.2,6.78032]
[1739463120299,0.06225055,2645.7,2644.8,0.781]
[1739463120621,3.77986,2645.6,2645.1,3.78049]
[1739463120794,0.26472505,2645.7,2645.4,3.78005]
[1739463120980,0.308,2645.8,2645.3,3.78021]
[1739463121180,6.12328,2646.0,2645.3,3.78021]
[1739463121380,6.12328,2646.0,2645.6,3.77978]
[1739463121381,0.3749,2646.0,2645.6,3.77978]
[1739463121681,0.0669,2646.3,2645.7,6.77969]
[1739463121876,0.0669,2646.3,2645.6,3.77977]
[1739463121877,0.0669,2646.3,2645.4,3.7745]
[1739463122076,4.81071443,2647.2,2646.1,3.77913]
[1739463122077,0.3749,2646.6,2646.1,3.77913]
[1739463122281,0.3749,2646.6,2646.3,3.77878]
[1739463122515,0.3749,2646.6,2646.5,3.77857]
[1739463122816,0.0669,2646.6,2646.5,3.77857]
[1739463123014,0.0669,2646.9,2646.5,3.77857]
[1739463123312,0.2110624,2647.2,2646.8,3.77814]
[1739463123523,0.1441624,2647.2,2646.8,3.77806]
[1739463123889,0.1441624,2647.2,2646.7,6.77828]
[1739463124093,0.1441624,2647.2,2646.7,3.0]
[1739463124433,0.1441624,2647.2,2646.7,6.77828]
[1739463124653,0.1441624,2647.2,2646.8,3.77811]
[1739463124654,0.53632164,2647.2,2646.8,3.77811]
[1739463124787,0.1441624,2647.2,2646.8,3.77811]
[1739463125112,0.1441624,2647.2,2647.1,3.77771]
[1739463125277,0.1441624,2647.2,2647.0,3.77786]
[1739463125672,0.1441624,2647.2,2647.0,3.77776]
[1739463125973,0.1441624,2647.2,2647.1,7.53171]
[1739463126807,2.4e-06,2647.2,2647.1,7.53171]
[1739463127428,2.4e-06,2647.2,2647.1,8.08171]
[1739463127581,2.4e-06,2647.2,2647.1,7.53171]
[1739463128297,2.4e-06,2647.2,2647.1,6.77771]
[1739463128680,2.4e-06,2647.2,2647.1,3.0]
[1739463129122,2.4e-06,2647.2,2646.8,3.77804]
[1739463129322,2.4e-06,2647.2,2647.0,3.77782]
[1739463129627,0.14703917,2647.1,2646.9,3.77799]
[1739463129794,0.14703917,2647.1,2646.8,3.77813]
[1739463130198,0.08013917,2647.1,2646.9,3.77799]
[1739463130395,0.08013917,2647.1,2646.4,0.7751]
[1739463130627,2.4e-06,2647.2,2646.9,3.77788]
[1739463131032,2.4e-06,2647.2,2647.1,3.0]
[1739463131185,2.4e-06,2647.2,2647.1,7.59199084]
[1739463131388,2.4e-06,2647.2,2647.1,7.56391]
[1739463132625,2.4e-06,2647.2,2647.1,6.77771]
[1739463132795,2.4e-06,2647.2,2647.1,3.0]
[1739463133738,2.4e-06,2647.2,2646.3,0.74973145]
[1739463133739,0.015,2647.0,2646.3,0.74973145]
[1739463133890,3.77809,2646.9,2646.1,3.77903]
[1739463134229,3.77809,2646.9,2645.7,0.7919]
[1739463134230,3.84554,2646.5,2645.7,0.7919]
[1739463134413,3.84554,2646.5,2646.0,3.0]
[1739463134586,0.0669,2646.5,2646.0,3.77919]
[1739463134787,0.0669,2646.8,2645.9,3.77943]
[1739463134986,0.0669024,2647.2,2647.0,3.77782]
[1739463135280,2.4e-06,2647.2,2647.1,3.77771]
[1739463135385,2.4e-06,2647.2,2646.9,3.77795]
[1739463135589,2.4e-06,2647.2,2646.7,11.35605]
[1739463135819,2.4e-06,2647.2,2646.7,7.57785]
[1739463135990,3.7775824,2647.2,2646.7,8.335635]
[1739463136184,2.4e-06,2647.2,2646.8,3.0]
[1739463136414,2.4e-06,2647.2,2646.7,4.535935]
[1739463136415,2.4e-06,2647.2,2647.0,3.77781]
[1739463136632,2.4e-06,2647.2,2647.0,7.55559]
[1739463136834,2.4e-06,2647.2,2647.0,3.77778]
[1739463137143,2.4e-06,2647.2,2646.9,3.0]
[1739463138041,2.4e-06,2647.2,2646.8,3.0]
[1739463138234,3.7776524,2647.2,2646.8,3.0]
[1739463138728,2.4e-06,2647.2,2646.9,6.77789]
[1739463139139,2.4e-06,2647.2,2647.0,3.77781]
[1739463139519,2.4e-06,2647.2,2646.9,3.0]
[1739463139719,3.7776724,2647.2,2646.9,3.0]
[1739463139930,2.4e-06,2647.2,2646.9,3.0]
[1739463140647,3.7775824,2647.2,2646.9,3.0]
[1739463140854,2.4e-06,2647.2,2646.9,3.0]
[1739463141244,3.7775924,2647.2,2646.9,3.0]
[1739463141422,3.77775,2647.1,2646.9,3.0]
[1739463141623,2.4e-06,2647.2,2646.8,6.77806]
[1739463142118,2.4e-06,2647.2,2647.1,6.77771]
[1739463142334,2.4e-06,2647.2,2647.1,7.57411]
[1739463144571,2.4e-06,2647.2,2647.1,3.0]
[1739463144939,2.4e-06,2647.2,2647.1,6.77771]
[1739463145554,0.07701957,2647.2,2647.1,6.77771]
[1739463145762,2.4e-06,2647.2,2647.1,6.77771]
[1739463145963,0.07701957,2647.2,2647.1,6.77771]
[1739463146493,0.07701957,2647.2,2647.1,3.0]
[1739463147046,0.07701957,2647.2,2647.1,6.77771]
[1739463147351,0.07701957,2647.2,2647.1,8.35858961]
[1739463147567,2.4e-06,2647.2,2647.1,8.35858961]
[1739463149589,2.4e-06,2647.2,2647.1,7.56218961]
[1739463149773,2.4e-06,2647.2,2647.1,6.77771]
[1739463149982,0.0771365,2647.2,2647.1,6.77771]
[1739463150375,2.4e-06,2647.2,2647.1,6.77771]
[1739463152694,2.4e-06,2647.2,2647.1,3.0]
[1739463152987,2.4e-06,2647.2,2647.1,6.77771]
[1739463153188,2.4e-06,2647.2,2647.1,7.91046383]
[1739463153709,2.4e-06,2647.2,2646.8,3.77814]
[1739463153988,2.4e-06,2647.2,2646.9,6.77793]
[1739463154398,0.07750445,2647.1,2646.9,6.77793]
[1739463154607,0.07750445,2647.1,2647.0,6.77786]
[1739463154815,2.4e-06,2647.2,2647.1,3.77771]
[1739463155113,2.4e-06,2647.2,2647.1,9.44364457]
[1739463156759,0.005,2648.4,2647.2,4.364]
[1739463156962,0.0669,2649.4,2649.3,3.77458]
[1739463157472,5.32,2650.0,2649.3,3.77458]
[1739463157473,0.0669,2649.7,2649.5,3.77427]
[1739463157801,0.0669,2649.7,2649.3,3.77449]
[1739463158378,0.0669,2649.7,2649.4,3.77442]
[1739463159000,0.0669,2649.7,2649.4,3.7744]
[1739463159201,0.07730957,2649.6,2649.4,3.7744]
[1739463159422,0.07730957,2649.6,2649.5,0.37744]
[1739463159725,0.0669,2649.9,2649.4,3.7744]
[1739463159928,0.07730957,2649.6,2649.4,3.7744]
[1739463160058,0.07730957,2649.6,2649.5,3.77429]
[1739463160259,0.0669,2649.9,2649.3,3.77454]
[1739463160518,3.9180624,2649.8,2649.2,3.77466]
[1739463161773,3.78152,2649.7,2649.2,3.0]
[1739463162198,3.84148,2649.3,2648.5,4.27784569]
[1739463162368,3.84148,2649.3,2648.3,0.8018]
[1739463162369,3.77515,2648.9,2648.3,3.77588]
[1739463162729,3.77497,2649.1,2648.1,0.74920869]
[1739463162730,0.0669,2648.7,2648.1,0.74920869]
[1739463162935,0.0669,2648.7,2648.0,0.8018]
[1739463162936,3.77561,2648.6,2648.0,3.77643]
[1739463163161,0.04720109,2648.5,2647.8,3.77658]
[1739463163341,0.04720109,2648.5,2647.7,0.77030997]
[1739463163342,3.77605,2648.3,2647.7,0.77030997]
[1739463163492,0.04720696,2648.2,2647.5,3.77706]
[1739463163674,3.77624,2648.2,2647.7,3.77685]
[1739463163873,3.77624,2648.2,2647.5,3.77706]
[1739463163874,3.77629,2648.1,2647.6,3.0]
[1739463164079,0.0669,2648.0,2647.5,3.77703]
[1739463164437,0.0669,2648.0,2647.3,3.77741]
[1739463164438,7.5534,2647.9,2647.3,3.77741]
[1739463164577,3.77668,2647.9,2647.3,3.77741]
[1739463164785,0.0669,2648.0,2647.4,3.77725]
[1739463165021,0.0669,2648.0,2647.5,3.77713]
[1739463165223,0.451223,2648.0,2647.7,3.77684]
[1739463165544,0.0669,2648.0,2647.1,1.86113457]
[1739463165679,0.015,2647.9,2646.9,0.76653945]
[1739463166038,0.015,2647.9,2647.0,3.77777]
[1739463166039,3.77712,2647.6,2647.0,3.77777]
[1739463166331,3.77675,2647.8,2647.2,3.77757]
[1739463166475,3.77666,2647.9,2647.3,0.377757]
[1739463166822,0.0669,2648.0,2647.5,3.77714]
[1739463167124,0.0669,2648.0,2647.4,3.0]
[1739463167268,0.0669,2648.0,2647.3,0.377757]
[1739463167475,0.0669,2648.0,2647.2,4.53818]
[1739463167721,0.0669,2648.0,2647.0,8.05561569]
[1739463167722,3.77707,2647.6,2647.0,8.05561569]
[1739463167916,3.77772,2647.1,2646.9,0.75732042]
[1739463168252,4.08544,2647.3,2646.2,0.7563]
[1739463168378,3.77766,2647.2,2646.6,3.77839]
[1739463168733,3.77766,2647.2,2646.2,0.7563]
[1739463168734,0.308,2647.4,2646.9,3.7779]
[1739463168877,0.0669,2647.5,2646.9,3.77787]
[1739463169086,0.0669,2647.5,2647.2,3.77757]
[1739463169440,3.84414,2647.5,2646.9,7.155737]
[1739463169735,3.77737,2647.4,2646.9,3.0]
[1739463170044,3.7766,2647.9,2646.9,3.0]
[1739463170045,3.84363,2647.8,2646.9,3.81388224]
[1739463170341,0.0669,2647.2,2646.2,0.7858]
[1739463170476,0.0669,2647.2,2646.0,0.377943]
[1739463170477,3.77843,2646.6,2646.0,3.77927]
[1739463170677,0.04723056,2646.9,2646.1,0.834438]
[1739463170977,0.0669,2647.2,2647.1,3.77771]
[1739463171178,0.308,2647.4,2647.1,3.77771]
[1739463171504,0.308,2647.4,2646.7,3.77828]
[1739463171679,3.77788,2647.0,2646.3,3.77873]
[1739463171884,3.82531806,2646.9,2646.3,3.77873]
[1739463172211,0.0787833,2646.8,2646.3,3.77873]
[1739463172414,0.0787833,2646.8,2646.3,3.0]
[1739463172738,0.0787833,2646.8,2646.3,0.8365738]
[1739463172881,0.0787833,2646.8,2646.7,3.77828]
[1739463173082,3.77758,2647.2,2646.7,6.77828]
[1739463173362,0.0669,2647.3,2646.3,3.77875]
[1739463173363,3.77815,2646.8,2646.3,3.77875]
[1739463173561,3.77808,2646.9,2646.3,3.77875]
[1739463173728,3.77836,2646.7,2646.1,5.365798]
[1739463173928,3.77836,2646.7,2646.1,0.7523]
[1739463174171,3.77858,2646.5,2646.1,0.7523]
[1739463174370,3.77858,2646.5,2645.9,3.77934]
[1739463174801,0.0669,2646.7,2645.9,3.77934]
[1739463174931,0.07721855,2646.4,2645.7,3.77962]
[1739463175134,0.38558386,2646.4,2645.7,3.77971]
[1739463175442,0.0669,2646.7,2645.7,3.77971]
[1739463175443,0.07721855,2646.3,2645.7,3.77962]
[1739463175641,3.7788,2646.4,2645.8,6.77949]
[1739463175876,0.07721855,2646.3,2645.8,6.77949]
[1739463176173,0.07721855,2646.3,2645.9,3.77935]
[1739463176474,0.07721855,2646.3,2645.3,0.76854414]
[1739463176475,0.015,2645.8,2644.8,5.987]
[1739463176632,3.7798,2645.7,2645.1,3.78046]
[1739463176834,3.82718269,2645.6,2645.1,3.78046]
[1739463177143,0.07721855,2645.5,2645.1,3.0]
[1739463177345,0.07721855,2645.5,2645.0,3.78063]
[1739463177346,3.85721855,2645.5,2645.0,3.0]
[1739463177664,0.07721855,2645.5,2644.9,4.4345]
[1739463177860,0.07721855,2645.5,2645.0,3.78068]
[1739463178179,3.77995,2645.6,2645.0,3.0]
[1739463178332,0.07721855,2645.4,2645.1,3.78048]
[1739463178528,3.7947,2645.8,2645.3,3.78028]
[1739463178734,4.558796,2645.8,2645.3,3.78028]
[1739463178958,3.77994,2645.6,2645.0,6.78067]
[1739463179280,0.0669,2645.2,2644.8,9.76799]
[1739463179773,0.308,2645.5,2645.0,3.78071]
[1739463180073,0.0669,2645.1,2644.4,3.78149]
[1739463180273,0.0669,2645.1,2644.1,0.7618]
[1739463180477,0.0669,2645.1,2645.0,3.78071]
[1739463180681,0.0669,2645.1,2644.8,3.78089]
[1739463180682,0.07721855,2645.0,2644.8,3.78091]
[1739463180836,0.0669,2645.1,2644.8,3.78091]
[1739463181037,0.07721855,2645.0,2644.8,3.78091]
[1739463181352,0.07721855,2645.0,2644.4,6.78154]
[1739463181353,0.07721855,2645.0,2644.4,3.78154]
[1739463181548,0.07721855,2645.0,2644.6,3.0]
[1739463181747,3.78128,2644.7,2644.0,3.7821]
[1739463181970,3.78128,2644.7,2644.1,3.7819]
[1739463182284,3.78209,2644.1,2643.5,3.78276]
[1739463182434,3.86338,2644.5,2643.3,4.54487]
[1739463182435,3.78224,2644.0,2643.4,3.78291]
[1739463182779,3.78286,2643.5,2642.7,0.7597]
[1739463182964,0.04728824,2643.4,2643.0,3.78348]
[1739463183134,4.52576721,2643.7,2643.1,3.0]
[1739463183341,0.07494882,2643.3,2643.1,6.78342]
[1739463183549,8.30845721,2643.7,2643.1,3.78342]
[1739463183763,0.07494882,2643.2,2643.1,3.78342]
[1739463184078,0.0075,2643.8,2642.7,0.7597]
[1739463184250,0.0075,2643.8,2643.1,3.78334]
[1739463184593,3.85754882,2643.7,2643.1,3.78334]
[1739463185378,0.07494882,2643.7,2643.3,3.78305]
[1739463185801,3.79006,2643.8,2643.2,3.78328]
[1739463186027,3.79006,2643.8,2643.1,3.78335]
[1739463186028,0.07494882,2643.6,2643.1,7.56668]
[1739463186314,0.07494882,2643.6,2642.9,3.0]
[1739463186315,0.07494882,2643.5,2642.7,8.03754569]
[1739463186460,0.07494882,2643.5,2643.4,3.783]
[1739463186666,3.84922,2643.9,2643.3,3.78305]
[1739463186911,0.07494882,2643.5,2643.3,3.78312]
[1739463187059,7.63165,2643.9,2643.3,3.78312]
[1739463187260,0.07260614,2643.8,2643.3,3.78312]
[1739463187494,0.07260614,2643.8,2643.5,3.78278]
[1739463187718,0.07260614,2643.8,2643.2,3.0]
[1739463187866,0.07260614,2643.8,2643.7,6.78257]
[1739463188286,5.32,2644.3,2644.1,3.78191]
[1739463188525,3.84813,2644.7,2644.1,3.7819]
[1739463188738,0.0669,2644.7,2644.1,3.7819]
[1739463188945,0.0669,2644.7,2644.3,3.7817]
[1739463189257,0.0669,2644.7,2644.5,3.78133]
[1739463189481,0.07260614,2644.6,2644.5,3.78133]
[1739463189966,0.308,2645.0,2644.7,3.78113]
[1739463190260,0.0669,2645.1,2644.6,3.78115]
[1739463190552,0.0669,2645.1,2644.8,3.781]
[1739463190756,0.07260614,2645.0,2644.8,3.781]
[1739463191163,0.07260614,2645.0,2644.7,3.78111]
[1739463191298,0.07260614,2645.0,2644.9,3.78086]
[1739463191670,0.07260614,2645.0,2644.9,6.78086]
[1739463192200,9.16713,2645.4,2644.9,6.78082]
[1739463192482,5.3869,2645.4,2645.0,3.7807]
[1739463192695,5.3869,2645.4,2644.9,3.0]
[1739463192901,0.07260614,2645.3,2645.1,3.78043]
[1739463193094,0.07260614,2645.3,2645.1,7.56092]
[1739463193229,0.07260614,2645.3,2645.2,3.78043]
[1739463193938,3.84667,2645.7,2645.1,3.78043]
[1739463194132,0.07260614,2645.3,2645.2,3.78043]
[1739463194371,0.0669,2645.7,2645.2,3.78043]
[1739463194599,0.07260614,2645.3,2645.2,3.78043]
[1739463194801,0.0669,2645.7,2645.0,3.0]
[1739463194957,0.0669,2645.7,2645.3,3.78026]
[1739463195139,0.0669,2645.7,2644.9,0.4143011]
[1739463195334,0.0669,2645.7,2645.4,3.78013]
[1739463195962,0.0669,2645.7,2645.3,3.78027]
[1739463196307,0.0669,2645.7,2645.5,3.77991]
[1739463196508,0.0669,2646.1,2645.8,3.77951]
[1739463196643,0.0669,2646.1,2645.7,7.55934]
[1739463196845,0.0669,2646.1,2645.7,3.77963]
[1739463197287,0.0669,2646.1,2645.3,4.56908]
[1739463197288,3.89329192,2646.1,2645.3,4.56908]
[1739463197445,3.77936,2646.0,2645.5,3.77998]
[1739463197661,3.84604,2646.1,2645.5,3.77991]
[1739463197855,0.0669,2646.1,2645.7,3.77969]
[1739463198167,0.0669,2646.1,2645.6,3.0]
[1739463198374,0.0669,2646.1,2645.8,3.77953]
[1739463198683,0.0669,2646.1,2645.7,3.0]
[1739463198889,0.0669,2646.4,2645.9,3.77933]
[1739463199055,3.84562,2646.4,2645.9,3.77935]
[1739463199261,3.84562,2646.4,2645.9,3.0]
[1739463199457,3.84562,2646.4,2645.9,6.77942]
[1739463199909,0.0669,2646.4,2645.9,6.77929]
[1739463200234,0.0669,2646.4,2645.9,0.677929]
[1739463200437,0.0669,2646.7,2645.7,0.7632]
[1739463200728,3.77864,2646.5,2646.0,3.77921]
[1739463201153,4.5947569,2646.7,2646.0,3.77921]